[Event "MCR rapid mládeže 2023 U16"]
[Site "Harachov, Czech Republic"]
[Date "2023.09.09"]
[Round "1.16"]
[White "Belocky, Daniel"]
[Black "Svadlenka, Michal"]
[Result "0-1"]
[TimeControl "20min+5s/move"]
[WhiteElo "1369"]
[BlackElo "1451"]

1. d4 {[%clk 00:20:08]} {[%emt 00:00:01]} Nf6 {[%clk 00:20:09]} {[%emt
00:00:02]} 2. Nf3 {[%clk 00:20:12]} {[%emt 00:00:01]} d5 {[%clk 00:20:09]}
{[%emt 00:00:05]} 3. c4 {[%clk 00:20:16]} {[%emt 00:00:01]} e6 {[%clk
00:20:06]} {[%emt 00:00:08]} 4. Nc3 {[%clk 00:20:19]} {[%emt 00:00:01]} c6
{[%clk 00:20:05]} {[%emt 00:00:06]} 5. Bg5 {[%clk 00:20:22]} {[%emt 00:00:03]}
Nbd7 {[%clk 00:20:08]} {[%emt 00:00:02]} 6. e3 {[%clk 00:20:25]} {[%emt
00:00:02]} Be7 {[%clk 00:20:07]} {[%emt 00:00:05]} 7. cxd5 {[%clk 00:20:28]}
{[%emt 00:00:03]} exd5 {[%clk 00:20:05]} {[%emt 00:00:07]} 8. Bd3 {[%clk
00:20:30]} {[%emt 00:00:02]} O-O {[%clk 00:20:01]} {[%emt 00:00:09]} 9. Qc2
{[%clk 00:20:16]} {[%emt 00:00:19]} h6 {[%clk 00:19:51]} {[%emt 00:00:15]} 10.
Bxf6 {[%clk 00:19:54]} {[%emt 00:00:28]} Nxf6 {[%clk 00:19:41]} {[%emt
00:00:14]} 11. O-O {[%clk 00:19:33]} {[%emt 00:00:26]} Re8 {[%clk 00:19:37]}
{[%emt 00:00:09]} 12. Rac1 {[%clk 00:19:16]} {[%emt 00:00:22]} Bd6 {[%clk
00:19:16]} {[%emt 00:00:26]} 13. h3 {[%clk 00:19:02]} {[%emt 00:00:19]} Bd7
{[%clk 00:18:01]} {[%emt 00:01:20]} 14. Rfe1 {[%clk 00:17:55]} {[%emt
00:01:12]} Rc8 {[%clk 00:17:34]} {[%emt 00:00:32]} 15. e4 {[%clk 00:16:32]}
{[%emt 00:01:29]} dxe4 {[%clk 00:17:32]} {[%emt 00:00:07]} 16. Nxe4 {[%clk
00:16:35]} {[%emt 00:00:02]} Bf4 {[%clk 00:15:48]} {[%emt 00:01:48]} 17. Nxf6+
{[%clk 00:16:18]} {[%emt 00:00:22]} Qxf6 {[%clk 00:15:51]} {[%emt 00:00:03]} 18.
Rcd1 {[%clk 00:15:14]} {[%emt 00:01:09]} Be6 {[%clk 00:15:22]} {[%emt
00:00:33]} 19. b3 {[%clk 00:14:50]} {[%emt 00:00:29]} Rcd8 {[%clk 00:14:02]}
{[%emt 00:01:25]} 20. Bc4 {[%clk 00:13:38]} {[%emt 00:01:17]} Bf5 {[%clk
00:11:39]} {[%emt 00:02:28]} 21. Bd3 {[%clk 00:13:08]} {[%emt 00:00:35]} Bxd3
{[%clk 00:11:16]} {[%emt 00:00:28]} 22. Qxd3 {[%clk 00:13:02]} {[%emt
00:00:11]} Rxe1+ {[%clk 00:10:02]} {[%emt 00:01:20]} 23. Rxe1 {[%clk 00:13:02]}
{[%emt 00:00:04]} Bc7 {[%clk 00:09:11]} {[%emt 00:00:56]} 24. b4 {[%clk
00:10:58]} {[%emt 00:02:10]} Bb6 {[%clk 00:09:04]} {[%emt 00:00:12]} 25. a3
{[%clk 00:10:56]} {[%emt 00:00:06]} g6 {[%clk 00:06:44]} {[%emt 00:02:25]} 26.
Rd1 {[%clk 00:09:13]} {[%emt 00:01:48]} a5 {[%clk 00:06:03]} {[%emt 00:00:47]}
27. bxa5 {[%clk 00:07:52]} {[%emt 00:01:26]} Bxa5 {[%clk 00:06:07]} {[%emt
00:00:01]} 28. Qb3 {[%clk 00:07:54]} {[%emt 00:00:03]} b6 {[%clk 00:04:27]}
{[%emt 00:01:44]} 29. Qa4 {[%clk 00:07:15]} {[%emt 00:00:45]} Bc3 {[%clk
00:03:25]} {[%emt 00:01:07]} 30. Qc4 {[%clk 00:05:27]} {[%emt 00:01:52]} Bb2
{[%clk 00:02:57]} {[%emt 00:00:33]} 31. a4 {[%clk 00:05:21]} {[%emt 00:00:11]}
c5 {[%clk 00:02:19]} {[%emt 00:00:43]} 32. d5 {[%clk 00:04:40]} {[%emt
00:00:47]} Rd6 {[%clk 00:01:57]} {[%emt 00:00:26]} 33. Nd2 {[%clk 00:03:51]}
{[%emt 00:00:54]} Qd4 {[%clk 00:01:36]} {[%emt 00:00:26]} 34. Qxd4 {[%clk
00:03:34]} {[%emt 00:00:23]} Bxd4 {[%clk 00:01:39]} {[%emt 00:00:02]} 35. Nc4
{[%clk 00:03:33]} {[%emt 00:00:05]} Rxd5 {[%clk 00:01:40]} {[%emt 00:00:05]} 36.
Nxb6 {[%clk 00:03:36]} {[%emt 00:00:01]} Bxf2+ {[%emt 00:00:15]} 0-1

[Event "MCR rapid mládeže 2023 U16"]
[Site "Harachov, Czech Republic"]
[Date "2023.09.09"]
[Round "1.17"]
[White "Honcharov, Makar"]
[Black "Babula, Tomas"]
[Result "1-0"]
[TimeControl "20min+5s/move"]
[WhiteElo "1593"]
[BlackElo "1266"]

1. e4 {[%clk 00:20:08]} {[%emt 00:00:01]} c5 {[%clk 00:20:07]} {[%emt
00:00:03]} 2. Nf3 {[%clk 00:20:12]} {[%emt 00:00:01]} d6 {[%clk 00:20:09]}
{[%emt 00:00:03]} 3. d4 {[%clk 00:20:17]} {[%emt 00:00:01]} cxd4 {[%clk
00:20:11]} {[%emt 00:00:03]} 4. Nxd4 {[%clk 00:20:20]} Nf6 {[%clk 00:20:15]}
{[%emt 00:00:02]} 5. Nc3 {[%clk 00:20:24]} g6 {[%clk 00:20:18]} {[%emt
00:00:04]} 6. Be3 {[%clk 00:20:26]} Bg7 {[%clk 00:20:20]} {[%emt 00:00:05]} 7.
f3 {[%emt 00:00:51]} O-O {[%clk 00:20:06]} {[%emt 00:00:16]} 8. Qd2 {[%clk
00:19:45]} {[%emt 00:00:04]} Nc6 {[%clk 00:19:39]} {[%emt 00:00:32]} 9. g4
{[%clk 00:19:47]} {[%emt 00:00:02]} Bd7 {[%clk 00:18:52]} {[%emt 00:00:52]} 10.
h4 {[%clk 00:19:31]} {[%emt 00:00:21]} h5 {[%clk 00:15:43]} {[%emt 00:03:14]}
11. gxh5 {[%clk 00:19:23]} {[%emt 00:00:13]} Nxh5 {[%clk 00:15:46]} {[%emt
00:00:02]} 12. Rg1 {[%clk 00:19:23]} {[%emt 00:00:04]} e6 {[%clk 00:12:37]}
{[%emt 00:03:16]} 13. O-O-O {[%clk 00:17:06]} {[%emt 00:02:21]} Nxd4 {[%clk
00:10:08]} {[%emt 00:02:34]} 14. Bxd4 {[%clk 00:16:58]} {[%emt 00:00:14]} Qxh4
{[%clk 00:08:57]} {[%emt 00:01:16]} 15. Bf2 {[%clk 00:14:54]} {[%emt 00:02:09]}
Qf4 {[%clk 00:08:23]} {[%emt 00:00:39]} 16. Be3 {[%clk 00:14:39]} {[%emt
00:00:20]} Qxf3 {[%clk 00:07:25]} {[%emt 00:01:02]} 17. Be2 {[%clk 00:14:23]}
{[%emt 00:00:21]} Qf6 {[%clk 00:05:33]} {[%emt 00:01:55]} 18. Bxh5 {[%clk
00:14:24]} {[%emt 00:00:06]} gxh5 {[%clk 00:05:19]} {[%emt 00:00:19]} 19. Bh6
{[%clk 00:14:14]} {[%emt 00:00:14]} Kh7 {[%clk 00:03:53]} {[%emt 00:01:32]} 20.
Bxg7 {[%clk 00:14:11]} {[%emt 00:00:08]} Qf3 {[%clk 00:03:49]} {[%emt
00:00:10]} 21. Qh6+ {[%clk 00:14:13]} {[%emt 00:00:02]} 1-0

[Event "MCR rapid mládeže 2023 U16"]
[Site "Harachov, Czech Republic"]
[Date "2023.09.09"]
[Round "1.18"]
[White "Borecky, Andrej"]
[Black "Mydlar, Matej"]
[Result "0-1"]
[TimeControl "20min+5s/move"]
[WhiteElo "1394"]
[BlackElo "1711"]

1. d4 {[%clk 00:20:03]} {[%emt 00:00:07]} Nf6 {[%clk 00:20:04]} {[%emt
00:00:05]} 2. c4 {[%clk 00:20:07]} {[%emt 00:00:03]} e6 {[%clk 00:20:07]}
{[%emt 00:00:01]} 3. Nc3 {[%clk 00:20:11]} {[%emt 00:00:01]} Bb4 {[%clk
00:20:11]} {[%emt 00:00:01]} 4. Qc2 {[%clk 00:20:16]} {[%emt 00:00:01]} c5
{[%clk 00:19:49]} {[%emt 00:00:25]} 5. e3 {[%clk 00:19:59]} {[%emt 00:00:22]}
Nc6 {[%clk 00:19:47]} {[%emt 00:00:06]} 6. Nf3 {[%clk 00:19:41]} {[%emt
00:00:24]} O-O {[%clk 00:18:56]} {[%emt 00:00:56]} 7. a3 {[%clk 00:18:05]}
{[%emt 00:01:42]} Bxc3+ {[%clk 00:18:48]} {[%emt 00:00:12]} 8. Qxc3 {[%clk
00:18:09]} {[%emt 00:00:01]} b6 {[%clk 00:18:14]} {[%emt 00:00:39]} 9. Bd3
{[%clk 00:16:58]} {[%emt 00:01:16]} Bb7 {[%clk 00:17:59]} {[%emt 00:00:19]} 10.
O-O {[%clk 00:15:50]} {[%emt 00:01:13]} Rc8 {[%clk 00:16:28]} {[%emt 00:01:37]}
11. Qd2 {[%clk 00:13:41]} {[%emt 00:02:13]} Na5 {[%clk 00:15:14]} {[%emt
00:01:19]} 12. Qe2 {[%clk 00:09:07]} {[%emt 00:04:40]} Nb3 {[%clk 00:13:25]}
{[%emt 00:01:54]} 13. Rb1 {[%clk 00:08:51]} {[%emt 00:00:21]} cxd4 {[%clk
00:08:04]} {[%emt 00:05:26]} 14. Nxd4 {[%clk 00:07:50]} {[%emt 00:01:06]} Nc5
{[%clk 00:06:34]} {[%emt 00:01:33]} 15. Bc2 {[%clk 00:06:43]} {[%emt 00:01:14]}
d5 {[%clk 00:06:16]} {[%emt 00:00:22]} 16. b4 {[%clk 00:05:27]} {[%emt
00:01:23]} Nce4 {[%clk 00:06:20]} {[%emt 00:00:01]} 17. Bb2 {[%clk 00:02:39]}
{[%emt 00:02:52]} Rxc4 {[%clk 00:06:06]} {[%emt 00:00:19]} 18. Bd3 {[%clk
00:01:27]} {[%emt 00:01:18]} Nc3 {[%clk 00:04:08]} {[%emt 00:02:02]} 19. Bxc3
{[%clk 00:01:06]} {[%emt 00:00:26]} Rxc3 {[%clk 00:04:10]} {[%emt 00:00:03]} 20.
a4 {[%clk 00:00:47]} {[%emt 00:00:25]} Rc8 {[%clk 00:02:34]} {[%emt 00:01:40]}
21. Rfc1 {[%clk 00:00:48]} {[%emt 00:00:04]} e5 {[%clk 00:02:13]} {[%emt
00:00:26]} 22. Rxc8 {[%clk 00:00:47]} {[%emt 00:00:06]} Qxc8 {[%clk 00:02:10]}
{[%emt 00:00:09]} 23. Nb5 {[%clk 00:00:51]} {[%emt 00:00:01]} Qb8 {[%clk
00:01:53]} {[%emt 00:00:21]} 24. Rc1 {[%clk 00:00:46]} {[%emt 00:00:10]} h6
{[%clk 00:01:08]} {[%emt 00:00:51]} 25. Bb1 {[%clk 00:00:45]} {[%emt 00:00:05]}
a6 {[%clk 00:00:57]} {[%emt 00:00:16]} 26. Nc3 {[%clk 00:00:41]} {[%emt
00:00:09]} Re8 {[%clk 00:00:39]} {[%emt 00:00:23]} 27. Qd2 {[%clk 00:00:33]}
{[%emt 00:00:13]} Rd8 {[%clk 00:00:35]} {[%emt 00:00:09]} 28. Qe2 {[%clk
00:00:31]} {[%emt 00:00:07]} Qa8 {[%clk 00:00:32]} {[%emt 00:00:07]} 29. f3
{[%clk 00:00:25]} {[%emt 00:00:12]} d4 {[%clk 00:00:33]} {[%emt 00:00:04]} 30.
exd4 {[%clk 00:00:27]} {[%emt 00:00:04]} exd4 {[%clk 00:00:37]} 31. Nd1 {[%clk
00:00:20]} {[%emt 00:00:11]} Re8 {[%clk 00:00:33]} {[%emt 00:00:09]} 32. Qd2
{[%clk 00:00:17]} {[%emt 00:00:08]} Rd8 {[%clk 00:00:33]} {[%emt 00:00:05]} 33.
Nf2 {[%clk 00:00:17]} {[%emt 00:00:05]} Qb8 {[%clk 00:00:29]} {[%emt 00:00:08]}
34. Nd3 {[%clk 00:00:20]} {[%emt 00:00:03]} Qd6 {[%clk 00:00:30]} {[%emt
00:00:04]} 35. Bc2 {[%clk 00:00:10]} {[%emt 00:00:15]} Nd5 {[%clk 00:00:33]}
{[%emt 00:00:02]} 36. Bb1 {[%clk 00:00:10]} {[%emt 00:00:05]} Nc3 {[%clk
00:00:25]} {[%emt 00:00:13]} 37. Bc2 {[%clk 00:00:15]} {[%emt 00:00:01]} Re8
{[%clk 00:00:26]} {[%emt 00:00:03]} 38. Re1 {[%clk 00:00:14]} {[%emt 00:00:06]}
Rc8 {[%clk 00:00:14]} {[%emt 00:00:17]} 39. Ne5 {[%clk 00:00:07]} {[%emt
00:00:11]} f6 {[%clk 00:00:10]} {[%emt 00:00:10]} 40. Nd3 {[%clk 00:00:10]}
{[%emt 00:00:02]} Bd5 {[%clk 00:00:12]} {[%emt 00:00:04]} 41. Nf4 {[%clk
00:00:12]} {[%emt 00:00:02]} Bf7 {[%clk 00:00:15]} {[%emt 00:00:01]} 42. Nd3
{[%clk 00:00:16]} {[%emt 00:00:01]} a5 {[%clk 00:00:10]} {[%emt 00:00:11]} 43.
b5 {[%clk 00:00:15]} {[%emt 00:00:06]} Bc4 {[%clk 00:00:09]} {[%emt 00:00:06]}
44. Nf4 {[%clk 00:00:11]} {[%emt 00:00:09]} Qc5 {[%clk 00:00:13]} {[%emt
00:00:02]} 45. Kh1 {[%clk 00:00:13]} {[%emt 00:00:03]} Bf7 {[%clk 00:00:13]}
{[%emt 00:00:05]} 46. Ne6 {[%clk 00:00:09]} {[%emt 00:00:08]} Qc4 {[%clk
00:00:10]} {[%emt 00:00:06]} 47. Nf4 {[%clk 00:00:06]} {[%emt 00:00:10]} Nxa4
{[%clk 00:00:10]} {[%emt 00:00:05]} 48. Rc1 {[%clk 00:00:10]} {[%emt 00:00:01]}
Nc3 {[%clk 00:00:14]} {[%emt 00:00:01]} 49. Nd3 {[%clk 00:00:12]} {[%emt
00:00:03]} Qxb5 {[%clk 00:00:18]} {[%emt 00:00:01]} 50. Nf4 {[%clk 00:00:08]}
{[%emt 00:00:09]} Qg5 {[%clk 00:00:18]} {[%emt 00:00:05]} 51. Nd3 {[%clk
00:00:06]} {[%emt 00:00:07]} b5 {[%clk 00:00:21]} {[%emt 00:00:02]} 52. Qe1
{[%clk 00:00:07]} {[%emt 00:00:05]} b4 {[%clk 00:00:24]} {[%emt 00:00:01]} 53.
Bb3 {[%clk 00:00:06]} {[%emt 00:00:06]} Bxb3 {[%clk 00:00:28]} {[%emt
00:00:01]} 0-1

[Event "MCR rapid mládeže 2023 U16"]
[Site "Harachov, Czech Republic"]
[Date "2023.09.09"]
[Round "1.19"]
[White "Boff, Ondrej"]
[Black "Knapek, Jan"]
[Result "1/2-1/2"]
[TimeControl "20min+5s/move"]
[WhiteElo "1486"]
[BlackElo "1314"]

1. e4 {[%clk 00:20:05]} {[%emt 00:00:04]} c5 {[%clk 00:20:06]} {[%emt
00:00:05]} 2. Nf3 {[%clk 00:20:05]} {[%emt 00:00:04]} d6 {[%clk 00:20:09]}
{[%emt 00:00:03]} 3. Bb5+ {[%clk 00:20:00]} {[%emt 00:00:09]} Bd7 {[%clk
00:20:12]} {[%emt 00:00:03]} 4. Bxd7+ {[%clk 00:20:02]} {[%emt 00:00:03]} Qxd7
{[%clk 00:20:14]} {[%emt 00:00:03]} 5. O-O {[%clk 00:19:33]} {[%emt 00:00:34]}
Nc6 {[%clk 00:19:57]} {[%emt 00:00:21]} 6. c4 {[%clk 00:19:08]} {[%emt
00:00:31]} Nf6 {[%clk 00:19:14]} {[%emt 00:00:47]} 7. Nc3 {[%clk 00:19:09]}
{[%emt 00:00:05]} e5 {[%clk 00:19:14]} {[%emt 00:00:05]} 8. d3 {[%clk
00:18:40]} {[%emt 00:00:34]} Be7 {[%clk 00:18:48]} {[%emt 00:00:31]} 9. a3
{[%clk 00:18:30]} {[%emt 00:00:15]} O-O {[%clk 00:18:32]} {[%emt 00:00:21]} 10.
Rb1 {[%clk 00:18:11]} {[%emt 00:00:24]} a6 {[%clk 00:17:20]} {[%emt 00:01:18]}
11. Bd2 {[%clk 00:16:05]} {[%emt 00:02:10]} Rab8 {[%clk 00:16:33]} {[%emt
00:00:52]} 12. b4 {[%clk 00:14:56]} {[%emt 00:01:14]} cxb4 {[%clk 00:16:10]}
{[%emt 00:00:29]} 13. axb4 {[%clk 00:14:56]} {[%emt 00:00:04]} b5 {[%clk
00:15:14]} {[%emt 00:01:01]} 14. cxb5 {[%clk 00:13:56]} {[%emt 00:01:05]} axb5
{[%clk 00:15:05]} {[%emt 00:00:14]} 15. Qb3 {[%clk 00:12:22]} {[%emt 00:01:38]}
Rfd8 {[%clk 00:09:35]} {[%emt 00:05:36]} 16. Nd5 {[%clk 00:08:15]} {[%emt
00:04:12]} Nxd5 {[%clk 00:07:21]} {[%emt 00:02:20]} 17. Qxd5 {[%clk 00:08:03]}
{[%emt 00:00:16]} Bf6 {[%clk 00:05:08]} {[%emt 00:02:13]} 18. Bc3 {[%clk
00:06:29]} {[%emt 00:01:44]} Ne7 {[%clk 00:03:26]} {[%emt 00:01:47]} 19. Qb3
{[%clk 00:06:26]} {[%emt 00:00:07]} Rbc8 {[%clk 00:03:03]} {[%emt 00:00:25]} 20.
Rfc1 {[%clk 00:05:22]} {[%emt 00:01:11]} Qc7 {[%clk 00:02:17]} {[%emt
00:00:54]} 21. Qb2 {[%clk 00:04:19]} {[%emt 00:01:07]} Qb8 {[%clk 00:01:51]}
{[%emt 00:00:28]} 22. g4 {[%clk 00:03:21]} {[%emt 00:01:05]} h6 {[%clk
00:01:47]} {[%emt 00:00:10]} 23. h4 {[%clk 00:02:46]} {[%emt 00:00:39]} Ng6
{[%clk 00:01:40]} {[%emt 00:00:13]} 24. g5 {[%clk 00:02:11]} {[%emt 00:00:40]}
hxg5 {[%clk 00:01:40]} {[%emt 00:00:05]} 25. hxg5 {[%clk 00:02:14]} {[%emt
00:00:02]} Be7 {[%clk 00:01:37]} {[%emt 00:00:08]} 26. Ra1 {[%clk 00:01:47]}
{[%emt 00:00:31]} Rc6 {[%clk 00:01:16]} {[%emt 00:00:23]} 27. Bd2 {[%clk
00:01:43]} {[%emt 00:00:12]} Qc8 {[%clk 00:00:53]} {[%emt 00:00:29]} 28. Rxc6
{[%clk 00:01:37]} {[%emt 00:00:11]} Qxc6 {[%clk 00:00:37]} {[%emt 00:00:21]} 29.
Rc1 {[%clk 00:01:17]} {[%emt 00:00:25]} Qd7 {[%clk 00:00:40]} {[%emt 00:00:02]}
30. Nh2 {[%clk 00:00:57]} {[%emt 00:00:25]} d5 {[%clk 00:00:35]} {[%emt
00:00:11]} 31. Be3 {[%clk 00:00:51]} {[%emt 00:00:10]} d4 {[%clk 00:00:26]}
{[%emt 00:00:15]} 32. Bd2 {[%clk 00:00:53]} {[%emt 00:00:03]} Rc8 {[%clk
00:00:21]} {[%emt 00:00:10]} 33. Rxc8+ {[%clk 00:00:51]} {[%emt 00:00:06]} Qxc8
{[%clk 00:00:25]} {[%emt 00:00:02]} 34. Qc1 {[%clk 00:00:54]} {[%emt 00:00:01]}
Qxc1+ {[%clk 00:00:22]} {[%emt 00:00:08]} 35. Bxc1 {[%clk 00:00:58]} {[%emt
00:00:01]} Bxb4 {[%clk 00:00:26]} {[%emt 00:00:02]} 36. Ng4 {[%clk 00:01:01]}
{[%emt 00:00:02]} Bc3 {[%clk 00:00:22]} {[%emt 00:00:09]} 37. Kf1 {[%clk
00:00:59]} {[%emt 00:00:07]} Kf8 {[%clk 00:00:25]} {[%emt 00:00:02]} 38. Ke2
{[%clk 00:01:00]} {[%emt 00:00:03]} Ke7 {[%clk 00:00:30]} {[%emt 00:00:01]} 39.
Kd1 {[%clk 00:00:59]} {[%emt 00:00:05]} b4 {[%clk 00:00:34]} {[%emt 00:00:02]}
40. Kc2 {[%clk 00:01:02]} f6 {[%clk 00:00:36]} {[%emt 00:00:04]} 41. gxf6+
{[%clk 00:00:58]} {[%emt 00:00:08]} gxf6 {[%clk 00:00:40]} {[%emt 00:00:01]} 42.
Kb3 {[%clk 00:00:46]} {[%emt 00:00:17]} Ke6 {[%clk 00:00:40]} {[%emt 00:00:04]}
43. Nh6 {[%clk 00:00:47]} {[%emt 00:00:04]} Ne7 {[%clk 00:00:38]} {[%emt
00:00:08]} 44. f4 {[%clk 00:00:31]} {[%emt 00:00:20]} f5 {[%clk 00:00:32]}
{[%emt 00:00:11]} 45. fxe5 {[%clk 00:00:22]} {[%emt 00:00:13]} fxe4 {[%clk
00:00:33]} {[%emt 00:00:05]} 46. dxe4 {[%clk 00:00:17]} {[%emt 00:00:10]} Kxe5
{[%clk 00:00:36]} {[%emt 00:00:02]} 47. Bg5 {[%clk 00:00:13]} {[%emt 00:00:07]}
Nc6 {[%clk 00:00:39]} {[%emt 00:00:05]} 48. Nf7+ {[%clk 00:00:10]} {[%emt
00:00:07]} Kxe4 {[%clk 00:00:40]} {[%emt 00:00:04]} 49. Nd6+ {[%clk 00:00:14]}
{[%emt 00:00:01]} Kd3 {[%clk 00:00:42]} {[%emt 00:00:03]} 50. Nc4 {[%clk
00:00:15]} {[%emt 00:00:04]} Ne7 {[%clk 00:00:43]} {[%emt 00:00:04]} 51. Bxe7
{[%clk 00:00:16]} {[%emt 00:00:04]} Ke2 {[%clk 00:00:34]} {[%emt 00:00:12]} 52.
Bxb4 {[%clk 00:00:12]} {[%emt 00:00:11]} Bxb4 {[%clk 00:00:00]} {[%emt
00:00:02]} 1/2-1/2

[Event "MCR rapid mládeže 2023 U16"]
[Site "Harachov, Czech Republic"]
[Date "2023.09.09"]
[Round "1.20"]
[White "Seidl, Vaclav"]
[Black "Sochor, Antonin"]
[Result "0-1"]
[TimeControl "20min+5s/move"]
[WhiteElo "1347"]
[BlackElo "1480"]

1. e4 {[%clk 00:20:02]} {[%emt 00:00:07]} e6 {[%clk 00:19:51]} {[%emt
00:00:19]} 2. d4 {[%clk 00:20:04]} {[%emt 00:00:03]} d5 {[%clk 00:19:55]}
{[%emt 00:00:01]} 3. exd5 {[%clk 00:20:08]} {[%emt 00:00:02]} exd5 {[%clk
00:19:58]} {[%emt 00:00:02]} 4. Nf3 {[%clk 00:20:12]} Bd6 {[%clk 00:19:59]}
{[%emt 00:00:04]} 5. Bd3 {[%clk 00:20:16]} {[%emt 00:00:01]} Nf6 {[%clk
00:20:01]} {[%emt 00:00:03]} 6. Qe2+ {[%clk 00:20:20]} {[%emt 00:00:01]} Qe7
{[%clk 00:19:34]} {[%emt 00:00:32]} 7. Qxe7+ {[%clk 00:20:23]} {[%emt
00:00:02]} Bxe7 {[%clk 00:19:23]} {[%emt 00:00:15]} 8. O-O {[%clk 00:20:26]}
{[%emt 00:00:03]} O-O {[%clk 00:19:15]} {[%emt 00:00:14]} 9. Bf4 {[%clk
00:20:28]} {[%emt 00:00:03]} c5 {[%clk 00:18:49]} {[%emt 00:00:31]} 10. c3
{[%clk 00:20:26]} {[%emt 00:00:07]} Nc6 {[%clk 00:18:40]} {[%emt 00:00:13]} 11.
Nbd2 {[%clk 00:19:58]} {[%emt 00:00:33]} Bg4 {[%clk 00:18:15]} {[%emt
00:00:30]} 12. Ne5 {[%clk 00:19:44]} {[%emt 00:00:19]} cxd4 {[%clk 00:16:57]}
{[%emt 00:01:23]} 13. Nxc6 {[%clk 00:19:45]} {[%emt 00:00:05]} bxc6 {[%clk
00:16:59]} {[%emt 00:00:03]} 14. cxd4 {[%clk 00:19:47]} {[%emt 00:00:02]} c5
{[%clk 00:16:24]} {[%emt 00:00:40]} 15. dxc5 {[%clk 00:18:32]} {[%emt
00:01:21]} Bxc5 {[%clk 00:16:24]} {[%emt 00:00:04]} 16. Nb3 {[%clk 00:18:15]}
{[%emt 00:00:22]} Bb6 {[%clk 00:16:12]} {[%emt 00:00:17]} 17. Bb5 {[%clk
00:17:05]} {[%emt 00:01:15]} Ne4 {[%clk 00:15:04]} {[%emt 00:01:09]} 18. Rac1
{[%clk 00:16:07]} {[%emt 00:01:07]} a6 {[%clk 00:14:08]} {[%emt 00:01:02]} 19.
Bd3 {[%clk 00:13:29]} {[%emt 00:02:40]} a5 {[%clk 00:13:54]} {[%emt 00:00:21]}
20. Nd2 {[%clk 00:12:52]} {[%emt 00:00:43]} Bf5 {[%clk 00:13:16]} {[%emt
00:00:40]} 21. Nxe4 {[%clk 00:11:13]} {[%emt 00:01:46]} dxe4 {[%clk 00:13:09]}
{[%emt 00:00:12]} 22. Bb1 {[%clk 00:11:11]} {[%emt 00:00:07]} Bg6 {[%clk
00:12:25]} {[%emt 00:00:48]} 23. Rfe1 {[%clk 00:10:30]} {[%emt 00:00:46]} Rfe8
{[%clk 00:12:16]} {[%emt 00:00:14]} 24. Be3 {[%clk 00:10:32]} {[%emt 00:00:04]}
Bxe3 {[%clk 00:11:59]} {[%emt 00:00:21]} 25. Rxe3 {[%clk 00:10:32]} {[%emt
00:00:05]} Rab8 {[%clk 00:11:58]} {[%emt 00:00:07]} 26. b3 {[%clk 00:09:37]}
{[%emt 00:01:00]} h6 {[%clk 00:11:44]} {[%emt 00:00:17]} 27. Rce1 {[%clk
00:09:32]} {[%emt 00:00:12]} f5 {[%clk 00:11:46]} {[%emt 00:00:02]} 28. f3
{[%clk 00:08:59]} {[%emt 00:00:38]} Rb4 {[%clk 00:11:23]} {[%emt 00:00:28]} 29.
fxe4 {[%clk 00:08:26]} {[%emt 00:00:39]} fxe4 {[%clk 00:11:17]} {[%emt
00:00:10]} 30. Rd1 {[%clk 00:07:35]} {[%emt 00:00:56]} Kh7 {[%clk 00:10:02]}
{[%emt 00:01:17]} 31. a3 {[%clk 00:07:28]} {[%emt 00:00:15]} Rb5 {[%clk
00:08:51]} {[%emt 00:01:16]} 32. Rd4 {[%clk 00:06:54]} {[%emt 00:00:39]} Rbe5
{[%clk 00:08:30]} {[%emt 00:00:26]} 33. b4 {[%clk 00:06:39]} {[%emt 00:00:20]}
axb4 {[%clk 00:08:19]} {[%emt 00:00:16]} 34. axb4 {[%clk 00:06:42]} {[%emt
00:00:02]} R8e6 {[%clk 00:08:02]} {[%emt 00:00:21]} 35. Kf2 {[%clk 00:06:14]}
{[%emt 00:00:34]} h5 {[%clk 00:07:44]} {[%emt 00:00:21]} 36. Kg3 {[%clk
00:05:55]} {[%emt 00:00:25]} Kh6 {[%clk 00:06:57]} {[%emt 00:00:53]} 37. Kf4
{[%clk 00:05:36]} {[%emt 00:00:23]} Rf5+ {[%clk 00:06:01]} {[%emt 00:01:02]} 38.
Kg3 {[%clk 00:05:39]} {[%emt 00:00:02]} Rg5+ {[%clk 00:06:04]} {[%emt
00:00:02]} 39. Kf2 {[%clk 00:05:31]} {[%emt 00:00:13]} Rge5 {[%clk 00:06:02]}
{[%emt 00:00:06]} 40. Kg3 {[%clk 00:05:04]} {[%emt 00:00:32]} Bf5 {[%clk
00:06:00]} {[%emt 00:00:08]} 41. Kf4 {[%clk 00:04:49]} {[%emt 00:00:16]} g5+
{[%clk 00:06:02]} {[%emt 00:00:07]} 42. Kg3 {[%clk 00:04:50]} {[%emt 00:00:04]}
h4+ {[%clk 00:05:59]} {[%emt 00:00:08]} 43. Kf2 {[%clk 00:04:54]} {[%emt
00:00:01]} g4 {[%clk 00:06:02]} {[%emt 00:00:02]} 44. g3 {[%clk 00:04:33]}
{[%emt 00:00:26]} hxg3+ {[%clk 00:05:38]} {[%emt 00:00:29]} 45. Kxg3 {[%clk
00:04:31]} {[%emt 00:00:07]} Kg5 {[%clk 00:05:38]} {[%emt 00:00:05]} 46. b5
{[%clk 00:03:52]} {[%emt 00:00:45]} Rxb5 {[%clk 00:05:24]} {[%emt 00:00:18]} 47.
Bc2 {[%clk 00:02:55]} {[%emt 00:01:02]} Rb2 {[%clk 00:03:52]} {[%emt 00:01:38]}
48. Bxe4 {[%clk 00:01:57]} {[%emt 00:01:03]} Rh6 {[%clk 00:03:37]} {[%emt
00:00:19]} 49. Bxf5 {[%clk 00:01:45]} {[%emt 00:00:17]} Rh3# {[%clk 00:03:40]}
{[%emt 00:00:02]} 0-1